bitfinex/quotes_ETHUSD_20240811
["timestamp","ask_amount","ask_price","bid_price","bid_amount"]
[1723411806935,3.9032,2562.0,2561.7,0.12503]
[1723411807441,3.90266,2562.4,2561.7,4.02857]
[1723411807602,3.90287,2562.3,2561.7,4.02857]
[1723411807801,5.4993413,2562.4,2561.7,0.12503]
[1723411807802,3.9029,2562.2,2561.7,0.12503]
[1723411808030,7.80594,2562.2,2561.7,0.12503]
[1723411808230,3.9029,2562.2,2561.7,0.12503]
[1723411808457,3.90316,2562.1,2561.7,0.12503]
[1723411808831,3.90328,2562.0,2561.7,0.12503]
[1723411809176,3.90337,2561.9,2561.7,0.12503]
[1723411810656,3.9035,2561.8,2561.7,0.12503]
[1723411811236,7.807,2561.8,2561.7,0.12503]
[1723411811869,12.2605,2561.8,2561.7,0.12503]
[1723411812055,13.77445,2561.8,2561.7,0.12503]
[1723411812937,18.47915,2561.8,2561.7,0.12503]
[1723411813251,22.38265,2561.8,2561.7,0.12503]
[1723411813837,3.90499,2560.9,2560.3,0.06795494]
[1723411814185,3.90495,2560.9,2560.2,4.7838]
[1723411814383,3.90503,2560.8,2560.2,9.6368275]
[1723411814677,3.90503,2560.8,2560.2,5.7308975]
[1723411815179,3.90503,2560.8,2560.3,3.0]
[1723411815537,3.90529,2560.7,2560.3,3.0]
[1723411815689,4.686005,2560.8,2560.3,3.0]
[1723411815690,3.90533,2560.6,2560.3,3.0]
[1723411815871,3.90533,2560.6,2560.0,3.0]
[1723411816071,3.90533,2560.6,2559.9,3.90632]
[1723411816072,3.90549,2560.5,2559.9,3.90632]
[1723411816641,3.90565,2560.4,2559.8,4.765]
[1723411816875,3.90533,2560.6,2559.8,6.022825]
[1723411817047,3.90533,2560.6,2559.9,3.90627]
[1723411817261,7.81077,2560.6,2559.9,3.90627]
[1723411817555,3.90549,2560.5,2560.0,3.0]
[1723411817753,3.90573,2560.4,2559.8,4.765]
[1723411817988,3.90573,2560.4,2559.5,3.90691]
[1723411817989,4.296393,2560.3,2559.5,8.67191]
[1723411818172,3.90582,2560.3,2559.7,3.9067]
[1723411818375,3.90597,2560.2,2559.5,8.67191]
[1723411818670,3.9061,2560.1,2559.5,8.67191]
[1723411818853,3.90597,2560.2,2559.5,8.67191]
[1723411819045,4.296567,2560.2,2559.5,4.765]
[1723411819256,4.296567,2560.2,2559.4,3.97503836]
[1723411819257,3.90621,2560.1,2559.4,3.90705]
[1723411819459,5.3407907,2560.1,2559.3,3.90724]
[1723411819661,3.90651,2559.9,2559.2,0.12503]
[1723411819900,3.90651,2559.9,2559.2,4.11049137]
[1723411820067,3.90656,2559.8,2559.2,0.12503]
[1723411820269,3.90656,2559.8,2559.2,4.03249]
[1723411820468,3.90673,2559.7,2559.2,0.12503]
[1723411820791,3.9068,2559.7,2559.2,0.12503]
[1723411820988,3.90691,2559.6,2559.2,0.12503]
[1723411821503,3.90717,2559.4,2559.2,0.12503]
[1723411822373,7.81447,2559.4,2559.2,0.12503]
[1723411822557,3.90717,2559.4,2559.2,0.12503]
[1723411822903,0.390717,2559.3,2559.2,0.12503]
[1723411823058,4.298027,2559.3,2559.2,0.12503]
[1723411823260,12.702837,2559.3,2559.2,0.12503]
[1723411823565,13.252837,2559.3,2559.2,0.12503]
[1723411823772,33.122837,2559.3,2559.2,0.12503]
[1723411825294,37.030147,2559.3,2559.2,0.12503]
[1723411826083,40.030147,2559.3,2559.2,0.12503]
[1723411826599,3.90863,2558.5,2557.8,0.0679666]
[1723411826806,3.90863,2558.5,2557.9,3.90943]
[1723411827184,11.6675,2558.6,2557.9,3.90943]
[1723411827382,11.6675,2558.6,2557.5,0.06798131]
[1723411827573,3.9091,2558.2,2557.5,0.06798131]
[1723411827774,7.17,2558.3,2557.5,0.06798131]
[1723411828063,3.90973,2557.8,2557.1,8.39114]
[1723411828262,3.90973,2557.8,2557.1,8.39117]
[1723411828466,3.90973,2557.8,2557.1,4.4805]
[1723411828686,3.90979,2557.7,2557.1,4.4805]
[1723411829075,3.90979,2557.7,2557.0,3.91071]
[1723411829282,1.498952,2557.7,2557.3,3.91024]
[1723411829601,11.07958,2557.9,2557.2,3.91051]
[1723411830075,11.07951,2557.9,2557.3,3.91026]
[1723411830607,7.17,2557.9,2557.3,3.91026]
[1723411830763,3.90975,2557.8,2557.1,3.91055]
[1723411830967,3.90975,2557.8,2557.2,6.91041]
[1723411831170,8.727686,2557.9,2557.3,3.91036]
[1723411831577,3.90986,2557.7,2557.2,3.0]
[1723411831782,0.445986,2557.6,2557.2,3.0]
[1723411832186,4.355996,2557.6,2556.9,3.91092]
[1723411832392,4.355996,2557.6,2556.9,3.91088]
[1723411832595,3.91007,2557.5,2557.0,3.0]
[1723411832900,4.355996,2557.6,2557.0,6.91077]
[1723411833067,4.355996,2557.6,2556.8,0.06799782]
[1723411833068,8.63975,2557.4,2556.8,0.06799782]
[1723411833264,3.91054,2557.2,2556.8,0.06799782]
[1723411833531,1.557686,2557.9,2556.8,4.84882135]
[1723411833667,3.90939,2558.0,2557.4,3.9101]
[1723411833871,3.90939,2558.0,2557.3,3.91027]
[1723411834178,3.9095,2557.9,2557.3,3.91035]
[1723411834396,0.863879,2557.9,2557.3,3.91035]
[1723411834725,4.773429,2557.9,2557.3,3.91034]
[1723411835019,3.90963,2557.8,2557.2,3.9104]
[1723411835319,4.773429,2557.9,2557.2,3.9104]
[1723411835904,4.773429,2557.9,2557.2,7.82082]
[1723411836109,8.682999,2557.9,2557.2,3.9104]
[1723411836296,4.7779099,2557.8,2557.2,3.9104]
[1723411836495,4.7779099,2557.8,2557.0,3.91076]
[1723411836496,0.55,2557.7,2557.0,3.91076]
[1723411836722,4.7779899,2557.8,2557.0,3.91076]
[1723411836723,3.91002,2557.6,2557.1,3.0]
[1723411837021,3.91002,2557.6,2557.1,0.805211]
[1723411837200,7.82006,2557.6,2557.0,3.91076]
[1723411837410,3.91002,2557.6,2557.0,7.8215]
[1723411837717,3.91002,2557.6,2556.8,4.8386036]
[1723411837718,3.91047,2557.3,2556.8,0.0680036]
[1723411837919,3.91047,2557.3,2556.6,0.12503]
[1723411837920,3.91069,2557.1,2556.6,0.12503]
[1723411838124,3.91047,2557.3,2556.6,4.03644]
[1723411838424,12.49196,2557.2,2556.6,0.12503]
[1723411838723,3.91129,2556.7,2556.6,0.12503]
[1723411840930,1.249196,2557.1,2556.6,0.12503]
[1723411841292,5.159996,2557.1,2556.6,0.12503]
[1723411841488,1.249196,2557.1,2556.6,4.03638]
[1723411841784,0.44742069,2557.5,2556.6,0.20325931]
[1723411841986,0.56418689,2557.7,2556.8,8.63376]
[1723411842289,4.7584,2557.8,2557.1,3.91061]
[1723411842511,7.7614,2558.0,2557.3,3.91027]
[1723411842717,5.16146,2557.9,2557.3,3.91027]
[1723411843031,1.25198,2557.9,2557.4,3.91019]
[1723411843190,1.25198,2557.9,2557.3,8.63297]
[1723411843520,8.66766,2558.1,2557.3,8.63297]
[1723411843721,3.90939,2558.0,2557.3,12.54325]
[1723411844020,3.90939,2558.0,2557.3,8.63297]
[1723411844229,4.776169,2558.0,2557.3,8.63297]
[1723411844431,4.776169,2558.0,2556.9,3.0]
[1723411844432,0.866779,2558.0,2557.1,3.9106]
[1723411844592,3.90988,2557.7,2557.1,7.82114]
[1723411844793,3.90972,2557.8,2557.1,3.91057]
[1723411845021,3.9098,2557.7,2557.1,3.91057]
[1723411845219,4.8629899,2557.9,2556.9,6.9109]
[1723411845220,3.90863,2558.5,2557.8,4.7227]
[1723411845405,8.66654,2558.8,2558.1,3.90903]
[1723411845595,4.38416,2558.7,2557.9,3.90938]
[1723411845790,5.21355,2558.6,2557.9,3.90935]
[1723411846019,3.90802,2558.9,2558.0,4.80088355]
[1723411846226,3.90802,2558.9,2558.3,3.90884]
[1723411846612,3.9077,2559.1,2558.5,3.9084]
[1723411846821,3.90738,2559.3,2558.4,8.50104]
[1723411847735,3.90738,2559.3,2558.6,3.90826]
[1723411848113,3.90708,2559.5,2558.7,7.81635]
[1723411848297,7.75878,2559.7,2558.7,3.90812]
[1723411848636,3.90717,2559.4,2558.7,3.90812]
[1723411849020,3.90732,2559.3,2558.7,3.90812]
[1723411849207,3.90718,2559.4,2558.7,3.90812]
[1723411849402,0.781432,2559.3,2558.8,3.90797]
[1723411849602,0.5429204,2559.6,2559.0,3.90775]
[1723411850416,3.90733,2559.3,2558.8,4.6758]
[1723411850731,3.90708,2559.5,2558.8,4.6758]
[1723411851106,7.81356,2559.7,2558.9,3.90779]
[1723411851305,3.90646,2559.9,2558.8,4.6758]
[1723411851502,3.90675,2559.7,2559.1,3.90751]
[1723411852227,4.847246,2559.8,2559.2,4.6758]
[1723411852543,0.940646,2559.8,2559.2,4.6758]
[1723411853404,4.425,2559.6,2558.6,3.90836]
[1723411853737,4.425,2559.6,2558.4,8.58435]
[1723411853738,3.90758,2559.2,2558.4,8.58435]
[1723411854046,3.9078,2559.0,2558.5,3.0]
[1723411854535,3.90802,2558.9,2558.5,3.0]
[1723411854739,0.781582,2558.9,2558.5,3.0]
[1723411854911,7.17,2559.3,2558.2,3.0]
[1723411855115,3.90818,2558.8,2558.1,8.58492]
[1723411855345,3.90818,2558.8,2558.1,4.6758]
[1723411855504,3.90849,2558.6,2558.1,4.6758]
[1723411856314,3.90878,2558.4,2557.8,4.6758]
[1723411856515,3.90904,2558.2,2557.8,4.6758]
[1723411856733,3.90904,2558.2,2557.4,8.58588]
[1723411856734,3.90936,2558.0,2557.4,8.58588]
[1723411856935,7.81879,2558.0,2557.4,8.58588]
[1723411857137,3.90947,2557.9,2557.4,8.58588]
[1723411857320,3.9097,2557.8,2557.4,4.6758]
[1723411857524,3.9097,2557.8,2557.2,3.91044]
[1723411858127,7.81941,2557.8,2557.2,3.91044]
[1723411858508,3.90982,2557.7,2557.0,8.58655]
[1723411858854,3.90982,2557.7,2556.6,8.18698859]
[1723411858855,3.91032,2557.4,2556.7,3.9112]
[1723411859049,3.91032,2557.4,2556.6,4.03636]
[1723411859050,3.91032,2557.4,2556.6,4.03635]
[1723411859207,3.91056,2557.2,2556.6,4.03635]
[1723411859403,3.91056,2557.2,2556.6,4.03644]
[1723411859404,3.91057,2557.2,2556.6,4.03644]
[1723411859635,0.391057,2557.1,2556.6,4.03644]
[1723411859942,4.301827,2557.1,2556.6,0.12503]
[1723411860592,3.91083,2557.0,2556.6,0.12503]
[1723411861112,7.82176,2557.0,2556.6,0.12503]
[1723411861312,8.6430717,2557.0,2556.6,0.12503]
[1723411861644,0.8212817,2557.0,2556.6,0.12503]
[1723411862238,0.8212817,2557.0,2556.6,4.03644]
[1723411862436,0.8212817,2557.0,2556.6,0.12503]
[1723411862639,4.7321417,2557.0,2556.6,0.12503]
[1723411862810,7.8212,2557.2,2556.6,0.12503]
[1723411863005,3.91057,2557.2,2556.6,0.12503]
[1723411863245,3.91077,2557.1,2556.6,0.12503]
[1723411863410,0.782134,2557.0,2556.6,0.12503]
[1723411864333,7.76122,2558.1,2556.6,0.12503]
[1723411864334,3.91016,2557.5,2556.8,8.42442]
[1723411864533,3.90994,2557.6,2557.0,3.91081]
[1723411865463,4.691762,2557.7,2557.0,3.91068]
[1723411866028,0.781952,2557.7,2557.2,3.9105]
[1723411866244,0.781952,2557.7,2557.1,3.91066]
[1723411866546,0.781952,2557.7,2557.1,3.91058]
[1723411867167,0.781952,2557.7,2557.2,3.91048]
[1723411867372,11.07968,2557.8,2557.2,3.91048]
[1723411867672,11.07968,2557.8,2557.2,7.82091]
[1723411867832,11.07968,2557.8,2557.4,3.9102]
[1723411867833,7.17,2557.8,2557.4,3.9102]
[1723411868027,7.17,2558.1,2557.5,3.90997]
[1723411868257,19.87,2558.5,2557.4,8.4235]
[1723411868258,4.6684,2559.1,2557.9,4.5134]
[1723411868442,3.90864,2558.5,2557.9,4.5134]
[1723411868643,4.299504,2558.5,2557.9,4.5134]
[1723411868868,3.90899,2558.2,2557.5,4.5715]
[1723411869040,3.90899,2558.2,2557.6,3.0]
[1723411869240,3.90899,2558.2,2557.6,6.90982]
[1723411869458,4.32362626,2558.2,2557.6,3.0]
[1723411869657,4.32370626,2558.2,2557.6,3.0]
[1723411869977,0.41463626,2558.2,2557.3,3.91036]
[1723411870269,5.200664,2558.5,2557.3,3.91036]
[1723411870270,3.90954,2557.9,2557.3,3.91036]
[1723411870477,3.90954,2557.9,2557.3,3.91028]
[1723411871330,3.90954,2557.9,2557.4,3.9102]
[1723411871770,3.90923,2558.1,2557.4,3.9102]
[1723411871977,3.909,2558.2,2557.7,4.6387]
[1723411872277,3.90916,2558.1,2557.6,3.90987]
[1723411873078,7.81788,2558.3,2557.6,7.81964]
[1723411873252,3.90904,2558.2,2557.6,3.90977]
[1723411873451,4.3388874,2558.3,2557.8,3.9096]
[1723411874474,8.2478574,2558.3,2557.6,7.81955]
[1723411874777,4.3388874,2558.3,2557.8,3.90957]
[1723411875382,4.3388874,2558.3,2557.6,7.81957]
[1723411875566,4.3388874,2558.3,2557.6,3.90977]
[1723411875746,8.2478374,2558.3,2557.7,3.9097]
[1723411875945,0.43388874,2558.2,2557.7,3.9097]
[1723411876875,0.43388874,2558.2,2557.6,3.90977]
[1723411877071,0.43388874,2558.2,2557.7,3.90973]
[1723411877482,0.43388874,2558.2,2557.6,7.81959]
[1723411877986,0.43388874,2558.2,2557.7,3.90974]
[1723411878871,0.4299774,2558.3,2557.8,3.90951]
[1723411880987,0.4299774,2558.3,2558.0,3.90918]
[1723411881190,7.560864,2558.5,2558.0,3.90918]
[1723411881390,11.469414,2558.5,2558.0,3.90918]
[1723411881592,3.90878,2558.4,2557.9,4.6053]
[1723411882185,11.469414,2558.5,2557.9,8.51462]
[1723411883197,11.469414,2558.5,2557.9,4.6053]
[1723411883359,7.0427514,2558.4,2557.9,4.6053]
[1723411883563,3.1339414,2558.4,2557.9,4.6053]
[1723411884477,3.90887,2558.3,2557.9,4.6053]
[1723411884671,19.4,2558.8,2558.0,0.07818321]
[1723411884872,3.90834,2558.7,2558.0,4.45569153]
[1723411885262,7.81668,2558.7,2558.1,3.90913]
[1723411885603,3.90831,2558.7,2558.1,3.90913]
[1723411885803,7.81669,2558.7,2558.1,3.90913]
[1723411886202,7.81667,2558.7,2558.1,3.90913]
[1723411886494,7.81667,2558.7,2558.0,0.46834832]
[1723411886495,3.90831,2558.7,2558.0,0.46834832]
[1723411886702,3.9084,2558.6,2558.0,0.46834832]
[1723411886910,3.9084,2558.6,2558.0,4.37763832]
[1723411887208,3.90831,2558.7,2558.1,3.90909]
[1723411887571,3.90831,2558.7,2558.0,8.28684832]
[1723411887772,3.90831,2558.7,2558.1,0.89829383]
[1723411888182,7.81662,2558.7,2558.1,0.89829383]
[1723411888975,7.81662,2558.7,2558.0,4.37755832]
[1723411889174,3.90842,2558.6,2558.0,4.37755832]
[1723411890390,3.90831,2558.7,2558.0,8.28676832]
[1723411890656,7.81665,2558.7,2558.0,4.37755832]
[1723411891177,7.81668,2558.7,2558.0,4.37755832]
[1723411892093,3.9084,2558.6,2558.0,4.37755832]
[1723411892893,3.90854,2558.5,2558.0,4.37755832]
[1723411893095,3.9084,2558.6,2558.0,4.37755832]
[1723411894125,3.9084,2558.6,2558.0,8.28677832]
[1723411894332,3.90831,2558.7,2558.0,4.37755832]
[1723411894624,3.90838,2558.6,2558.0,3.90921]
[1723411898522,7.81665,2558.7,2558.0,3.90918]
[1723411898900,7.81665,2558.7,2558.0,7.81839]
[1723411899221,3.90831,2558.7,2558.0,3.90918]
[1723411899397,3.90839,2558.6,2558.0,3.90918]
[1723411899698,3.90839,2558.6,2558.0,5.151583]
[1723411900522,3.90839,2558.6,2558.0,3.90918]
[1723411901086,7.81663,2558.7,2558.0,7.81751394]
[1723411901314,3.90843,2558.6,2558.0,3.90830394]
[1723411905922,3.90831,2558.7,2558.0,7.81752394]
[1723411906124,3.90831,2558.7,2558.1,0.07817219]
[1723411906998,3.90842,2558.6,2558.1,0.07817219]
[1723411907521,7.81669,2558.7,2558.0,3.98647464]
[1723411907832,7.81662,2558.7,2558.1,4.5673]
[1723411907990,3.90831,2558.7,2558.1,4.64547071]
[1723411908515,3.90839,2558.6,2558.1,4.64547071]
[1723411908697,7.81663,2558.7,2558.1,4.64547071]
[1723411909222,7.81663,2558.7,2558.1,4.5673]
[1723411909851,3.90831,2558.7,2558.1,4.5673]
[1723411910148,3.90847,2558.6,2558.1,4.5673]
[1723411910719,3.90855,2558.5,2558.1,4.5673]
[1723411916057,3.90922,2558.1,2557.5,7.6133]
[1723411916259,3.90922,2558.1,2557.6,1.98871769]
[1723411916551,3.9093,2558.0,2557.5,8.28973459]
[1723411916755,3.90952,2557.9,2557.5,4.6133]
[1723411917431,7.81932,2557.8,2557.3,4.6133]
[1723411917764,3.90963,2557.8,2557.3,4.6133]
[1723411917922,3.91038,2557.3,2557.0,4.6133]
[1723411918262,0.391038,2557.2,2557.0,4.6133]
[1723411918446,3.91038,2557.3,2557.0,4.6133]
[1723411918960,3.91038,2557.3,2556.7,4.6133]
[1723411919260,7.82086,2557.3,2556.7,4.6133]
[1723411919434,3.91038,2557.3,2556.7,4.6133]
[1723411920552,3.91038,2557.3,2556.7,8.52457]
[1723411920853,3.91022,2557.4,2556.7,8.52457]
[1723411921061,4.301234,2557.4,2556.7,8.52457]
[1723411921237,3.91014,2557.5,2556.9,3.91095]
[1723411921430,3.91014,2557.5,2556.9,3.98915548]
[1723411921630,3.90979,2557.7,2556.9,3.91089]
[1723411921830,3.90979,2557.7,2557.0,0.07820549]
[1723411922034,4.748919,2557.6,2557.0,0.07820549]
[1723411922349,0.838909,2557.6,2557.0,0.07820549]
[1723411922543,4.748919,2557.6,2557.0,0.07820549]
[1723411922863,4.748919,2557.6,2556.9,3.91086]
[1723411923222,0.838909,2557.6,2556.9,3.91086]
[1723411923423,4.748849,2557.6,2556.9,3.91086]
[1723411923623,0.838909,2557.6,2556.9,3.91086]
[1723411923840,0.838909,2557.6,2557.1,8.52387]
[1723411924035,11.861282,2558.0,2557.3,3.91028]
[1723411924322,7.951852,2558.0,2557.3,3.91026]
[1723411924532,7.951852,2558.0,2557.3,7.8205]
[1723411924875,11.861202,2558.0,2557.3,3.91024]
[1723411925033,3.90961,2557.8,2557.2,3.9105]
[1723411925239,3.90961,2557.8,2557.1,8.52388]
[1723411925433,3.90961,2557.8,2557.2,3.91051]
[1723411925770,5.28645725,2557.9,2557.1,8.52388]
[1723411925971,5.28645725,2557.9,2557.3,3.91034]
[1723411925972,1.37698725,2557.9,2557.3,3.91034]
[1723411926143,1.37698725,2557.9,2557.4,3.9102]
[1723411926344,7.951852,2558.0,2557.5,8.52327]
[1723411926542,6.90908,2558.2,2557.5,8.52327]
[1723411926543,6.90908,2558.2,2557.6,3.90991]
[1723411926868,3.90908,2558.2,2557.6,3.90991]
[1723411927074,3.90875,2558.4,2557.7,7.8195]
[1723411927374,8.2865938,2558.4,2557.8,4.6133]
[1723411927882,4.3777938,2558.4,2557.8,8.5229]
[1723411928079,3.90875,2558.4,2557.8,8.5229]
[1723411928265,0.781688,2558.5,2557.9,3.90943]
[1723411928631,0.781688,2558.5,2557.8,4.6133]
[1723411928837,3.90869,2558.4,2557.8,4.6133]
[1723411929484,3.90869,2558.4,2557.8,8.52289]
[1723411929648,4.7685748,2558.4,2557.8,8.52289]
[1723411930370,4.7685748,2558.4,2557.8,4.6133]
[1723411931061,4.7685748,2558.4,2557.8,8.52288]
[1723411931651,4.7685748,2558.4,2557.8,4.6133]
[1723411932056,3.90884,2558.3,2557.8,4.6133]
[1723411932255,4.7685748,2558.4,2557.8,8.5229]
[1723411932665,0.55502628,2558.3,2557.6,4.455]
[1723411932880,3.90901,2558.2,2557.6,8.36481]
[1723411933379,3.90901,2558.2,2557.6,4.455]
[1723411934464,3.90901,2558.2,2557.6,8.3649]
[1723411935188,3.90901,2558.2,2557.6,4.455]
[1723411935393,3.90931,2558.0,2557.6,4.455]
[1723411935725,3.90931,2558.0,2557.3,11.47401]
[1723411935899,3.90953,2557.9,2557.3,4.5637]
[1723411936200,3.90953,2557.9,2557.1,3.91058]
[1723411936201,3.90979,2557.7,2557.1,3.91058]
[1723411936379,7.81967,2557.7,2557.1,1.238516]
[1723411936568,3.90979,2557.7,2557.1,1.238516]
[1723411936892,7.81967,2557.7,2557.1,5.149186]
[1723411937091,3.91016,2557.5,2557.0,4.5637]
[1723411937277,7.82031,2557.5,2557.1,3.0]
[1723411938158,3.91023,2557.4,2557.1,3.0]
[1723411938779,3.91015,2557.5,2556.9,3.0]
[1723411939800,3.91022,2557.4,2556.9,3.0]
[1723411939969,7.82032,2557.5,2556.9,6.91097]
[1723411940169,3.91015,2557.5,2556.9,8.84067]
[1723411942187,3.90984,2557.7,2556.9,8.84067]
[1723411942610,3.91016,2557.5,2556.9,8.84067]
[1723411942758,7.82035,2557.5,2556.9,6.91097]
[1723411942959,3.91022,2557.4,2556.9,6.91097]
[1723411943270,3.91016,2557.5,2556.9,6.91097]
[1723411943462,7.82034,2557.5,2556.9,6.91097]
[1723411943663,3.91016,2557.5,2556.9,6.91097]
[1723411944794,3.90985,2557.7,2556.9,6.91097]
[1723411945006,3.90941,2558.0,2557.3,4.5637]
[1723411945765,3.90924,2558.1,2557.4,3.91013]
[1723411945970,3.90924,2558.1,2557.4,4.757513]
[1723411946175,3.90924,2558.1,2557.5,3.90995]
[1723411946584,3.90924,2558.1,2557.5,3.98814184]
[1723411947011,3.90901,2558.2,2557.6,3.90986]
[1723411947209,11.07893,2558.3,2557.7,4.69946018]
[1723411947401,11.07893,2558.3,2557.8,4.64188411]
[1723411947600,11.07893,2558.3,2557.8,8.47329]
[1723411947920,11.07893,2558.3,2557.6,3.90986]
[1723411947921,11.07893,2558.3,2557.6,3.90977]
[1723411948425,14.98788,2558.3,2557.6,3.90977]
[1723411948920,7.81788,2558.3,2557.6,3.90977]
[1723411949288,3.90892,2558.3,2557.6,7.81958]
[1723411949491,3.90892,2558.3,2557.7,3.90975]
[1723411950754,8.46642,2558.5,2557.9,3.9093]
[1723411950918,3.90869,2558.4,2557.7,3.90962]
[1723411951115,3.90869,2558.4,2557.7,4.8807848]
[1723411952094,3.90893,2558.3,2557.7,4.8807848]
[1723411952306,3.90893,2558.3,2557.7,3.90962]
[1723411952787,7.8179,2558.3,2557.6,3.90987]
[1723411953000,3.90893,2558.3,2557.6,3.90987]
[1723411953191,7.81789,2558.3,2557.6,3.90987]
[1723411953525,3.90941,2558.0,2557.4,3.91011]
[1723411954297,7.81882,2558.0,2557.3,6.91027]
[1723411954490,3.90941,2558.0,2557.3,6.91027]
[1723411954698,7.8188,2558.0,2557.3,6.91027]
[1723411955027,3.9095,2557.9,2557.3,8.569825]
[1723411956091,3.90976,2557.7,2557.1,3.91059]
[1723411956433,4.5466,2557.8,2557.2,6.91051]
[1723411956728,8.4563,2557.8,2557.2,6.91051]
[1723411958139,3.90976,2557.7,2557.2,6.91051]
[1723411960702,3.90976,2557.7,2557.0,3.91074]
[1723411960898,3.90976,2557.7,2557.1,3.0]
[1723411961137,7.81962,2557.7,2557.1,3.0]
[1723411961640,3.90976,2557.7,2557.1,3.0]
[1723411961808,3.90976,2557.7,2557.1,6.91067]
[1723411962015,3.90976,2557.7,2557.1,8.6038387]
[1723411962225,3.90976,2557.7,2557.1,4.6931687]
[1723411963048,3.90976,2557.7,2557.1,8.6038087]
[1723411963348,3.90976,2557.7,2557.1,4.6931687]
[1723411963534,3.90995,2557.6,2557.1,4.6931687]
[1723411963840,3.90976,2557.7,2557.1,8.6038387]
[1723411965217,3.90976,2557.7,2557.1,4.6931687]
[1723411965404,3.90976,2557.7,2557.1,8.6038287]
[1723411965605,7.8196,2557.7,2557.1,8.6038287]
[1723411965846,3.90976,2557.7,2557.1,8.6038287]
[1723411966216,3.90976,2557.7,2557.2,3.9105]
[1723411967747,3.90976,2557.7,2557.1,4.6931687]
[1723411968625,3.90976,2557.7,2557.1,8.6037587]
[1723411971626,3.90976,2557.7,2557.2,3.91051]
[1723411973725,5.78318,2557.8,2557.3,3.91034]
[1723411974046,0.969272,2557.7,2556.6,7.90636264]
[1723411974218,3.91021,2557.5,2556.9,3.91088]
[1723411974423,7.82042,2557.5,2556.9,3.91088]
[1723411974623,3.91021,2557.5,2556.9,3.91088]
[1723411974865,0.391021,2557.4,2556.9,3.91088]
[1723411975719,0.391021,2557.4,2556.9,7.82178]
[1723411975925,5.11394,2557.6,2557.0,3.91071]
[1723411976222,8.64033,2558.1,2557.1,6.14050596]
[1723411976437,9.84433,2558.1,2557.5,3.90998]
[1723411976667,0.984433,2558.0,2557.5,3.90998]
[1723411976821,0.984433,2558.0,2557.5,7.81996]
[1723411977024,0.984433,2558.0,2557.6,3.90989]
[1723411977324,16.04058318,2558.3,2557.8,3.90957]
[1723411977325,14.15777318,2558.3,2557.8,3.90957]
[1723411977626,13.1051,2558.3,2557.8,3.90957]
[1723411977828,13.1051,2558.3,2557.8,3.90952]
[1723411979358,13.1051,2558.3,2557.8,7.81904]
[1723411979559,8.374,2558.3,2557.8,3.90952]
[1723411979774,9.602262,2558.3,2557.9,0.07818194]
[1723411979929,9.602262,2558.3,2557.9,0.07818133]
[1723411980125,8.374,2558.3,2557.8,3.90951]
[1723411980332,8.374,2558.3,2558.0,3.9093]
[1723411981326,7.17,2558.3,2558.0,3.9093]
[1723411981953,4.7311,2558.6,2558.0,4.8171]
[1723411982161,5.8525,2558.9,2558.3,3.9087]
[1723411982378,3.90747,2559.2,2558.4,4.8171]
[1723411982665,39.177627,2559.3,2558.7,3.90822]
[1723411982880,34.066227,2559.3,2558.7,3.90822]
[1723411983040,31.6885,2559.3,2558.9,3.90778]
[1723411983238,9.75941,2559.6,2559.0,3.90768]
[1723411983439,3.90679,2559.7,2559.1,3.90753]
[1723411983679,8.55498,2559.9,2559.3,3.90718]
[1723411983680,4.6485,2559.9,2559.3,3.90718]
[1723411983824,4.6485,2560.1,2559.5,3.90691]
[1723411984166,3.90554,2560.5,2559.7,3.90659]
[1723411984167,4.6485,2560.4,2559.7,3.90659]
[1723411984473,0.390554,2560.4,2559.9,3.90628]
[1723411984691,1.204,2560.6,2559.9,3.90628]
[1723411985351,3.90493,2560.9,2560.1,3.90598]
[1723411985545,5.10893,2560.9,2560.2,3.90584]
[1723411985786,4.6485,2561.0,2560.3,7.81148]
[1723411985949,4.6485,2561.0,2560.3,3.90574]
[1723411986143,4.6485,2561.0,2560.3,7.81141]
[1723411986144,0.855312,2560.9,2560.3,7.81141]
[1723411986345,8.55282,2561.3,2560.5,3.90538]
[1723411986794,3.90399,2561.5,2560.7,3.90515]
[1723411987087,8.50782,2561.6,2560.9,3.90481]
[1723411987291,0.850782,2561.5,2560.9,3.90481]
[1723411987459,3.9037,2561.7,2560.9,3.90481]
[1723411987673,3.90384,2561.6,2560.9,3.90481]
[1723411988891,3.90356,2561.8,2561.0,3.9047]
[1723411989105,4.36396,2561.8,2561.0,3.98278975]
[1723411989569,3.9037,2561.7,2561.0,0.07808975]
[1723411989774,3.90385,2561.6,2561.0,0.07808975]
[1723411990092,0.780755,2561.5,2560.9,3.90481]
[1723411990255,4.684745,2561.5,2560.7,3.90513]
[1723411990592,3.90412,2561.4,2560.7,3.90513]
[1723411990882,3.90413,2561.4,2560.7,3.90513]
[1723411991082,3.90399,2561.5,2560.7,3.90513]
[1723411991864,3.90413,2561.4,2560.7,3.90513]
[1723411992048,4.684942,2561.4,2560.7,3.90513]
[1723411992480,3.90371,2561.7,2560.8,0.07808981]
[1723411992677,3.90371,2561.7,2560.9,3.90474]
[1723411992880,3.90371,2561.7,2561.0,3.90462]
[1723411993564,3.90371,2561.7,2560.9,7.8095]
[1723411993767,0.436411,2561.6,2560.9,3.90474]
[1723411994405,3.90475,2561.0,2560.4,3.0]
[1723411994608,3.90475,2561.0,2560.3,4.7275]
[1723411994899,3.90499,2560.9,2560.3,4.7275]
[1723411995261,3.90498,2560.9,2560.3,4.7275]
[1723411995461,0.390498,2560.8,2560.3,4.7275]